lending/lending_fUSD_20260310
["ID","MTS","AMOUNT","RATE_DAILY","PERIOD"]
[408089326,1773133838995,-151.25613122,0.00018758,2]
[408089328,1773133839004,-1251.17012718,0.00018758,2]
[408089330,1773133839015,-1184.37840407,0.00018758,2]
[408089332,1773133839026,-301.22878301,0.00018758,2]
[408089345,1773133840533,-278.8,0.00018598,2]
[408089346,1773133840544,-2019.91513355,0.00018598,2]
[408089347,1773133840555,-162.28486645,0.00018598,2]
[408089348,1773133840565,-381.91911595,0.00018758,2]
[408089349,1773133840794,-1406.45091151,0.00018758,2]
[408089350,1773133840803,-695.39793187,0.00018758,2]
[408089351,1773133840813,-1000.0,0.00018758,2]
[408089352,1773133840823,-578.20924308,0.00018758,2]
[408089353,1773133840832,-250.0,0.00018758,2]
[408089354,1773133840842,-250.0,0.00018758,2]
[408089355,1773133840852,-500.0,0.00018758,2]
[408089356,1773133840861,-250.0,0.00018758,2]
[408089357,1773133840871,-9207.20483851,0.00018758,2]
[408089358,1773133840880,-250.0,0.00018758,2]
[408089359,1773133840890,-250.0,0.00018758,2]
[408089360,1773133840900,-250.0,0.00018758,2]
[408089361,1773133840910,-200.0,0.00018758,2]
[408089362,1773133840920,-174.61919141,0.00018758,2]
[408089363,1773133840929,-743.50770149,0.00018758,2]
[408089364,1773133840939,-201.93286099,0.00018758,2]
[408089365,1773133840948,-262.90206542,0.00018758,2]
[408089366,1773133840958,-172.91703981,0.00018795,2]
[408089367,1773133840967,-944.891483,0.00018809,7]
[408089368,1773133840976,-9000.0,0.00018813,2]
[408089369,1773133840986,-9000.0,0.00018868,2]
[408089370,1773133840995,-6796.41223008,0.00018875,2]
[408089371,1773133841007,-9000.0,0.00018923,2]
[408089372,1773133841016,-500.0,0.00018959,7]
[408089373,1773133841027,-152.0,0.00018967,4]
[408089374,1773133841036,-9000.0,0.00018978,2]
[408089375,1773133841046,-235.69610359,0.00019,2]
[408089376,1773133841055,-9000.0,0.00019033,2]
[408089377,1773133841066,-489.0,0.00019078,2]
[408089378,1773133841075,-9000.0,0.00019088,2]
[408089379,1773133841086,-6796.41223008,0.00019124,2]
[408089380,1773133841095,-9000.0,0.00019143,2]
[408089381,1773133841107,-200.0,0.00019152,2]
[408089383,1773133841120,-250.0,0.00019178,2]
[408089384,1773133841130,-2000.0,0.000192,2]
[408089385,1773133841139,-500.0,0.00019233,7]
[408089386,1773133841148,-11000.0,0.00019257,7]
[408089387,1773133841157,-172.91703981,0.00019257,7]
[408089389,1773133841166,-1000.0,0.00019306,2]
[408089390,1773133841175,-181.08010149,0.00019306,2]
[408089392,1773133841184,-771.01748645,0.00019306,2]
[408089393,1773133841194,-209.40437684,0.00019306,2]
[408089394,1773133841204,-272.62944185,0.00019306,2]
[408089395,1773133841213,-500.0,0.00019313,2]
[408089396,1773133841223,-500.0,0.00019314,7]
[408089397,1773133841234,-761.0,0.00019364,2]
[408089398,1773133841244,-150.0,0.00019364,2]
[408089399,1773133841253,-150.0,0.00019364,2]
[408089400,1773133841263,-160.0,0.00019364,2]
[408089401,1773133841273,-6796.41223008,0.00019373,2]
[408089402,1773133841282,-1750.41862282,0.00019424,2]
[408089403,1773133841295,-159.99163251,0.00019425,2]
[408089404,1773133841304,-500.0,0.00019426,2]
[408089405,1773133841312,-500.0,0.00019426,2]
[408089406,1773133841322,-500.0,0.00019507,7]
[408089407,1773133841331,-642.814,0.00019511,2]
[408089408,1773133841342,-489.0,0.00019564,2]
[408089409,1773133841351,-150.0,0.00019574,2]
[408089410,1773133841359,-150.0,0.00019574,2]
[408089411,1773133841370,-150.0,0.00019574,2]
[408089413,1773133841378,-150.0,0.00019574,2]
[408089414,1773133841387,-1342.0,0.00019574,2]
[408089415,1773133841396,-1044.726,0.00019574,2]
[408089416,1773133841405,-619.0,0.00019574,2]
[408089417,1773133841414,-3505.0,0.00019574,2]
[408089418,1773133841423,-1279.0,0.00019574,2]
[408089419,1773133841431,-151.0,0.00019574,2]
[408089420,1773133841440,-262.095092,0.00019574,2]
[408089421,1773133841449,-253.074456,0.00019574,2]
[408089422,1773133841458,-262.095092,0.00019574,2]
[408089423,1773133841467,-253.074456,0.00019574,2]
[408089424,1773133841475,-253.074456,0.00019574,2]
[408089425,1773133841484,-262.095092,0.00019574,2]
[408089426,1773133841493,-253.074456,0.00019574,2]
[408089427,1773133841502,-262.095092,0.00019574,2]
[408089428,1773133841511,-5037.764406,0.00019574,2]
[408089429,1773133841519,-5037.764406,0.00019574,2]
[408089430,1773133841528,-5037.764406,0.00019574,2]
[408089431,1773133841537,-5037.764406,0.00019574,2]
[408089432,1773133841546,-151.0,0.00019574,2]
[408089433,1773133841554,-151.0,0.00019574,2]
[408089434,1773133841563,-151.0,0.00019574,2]
[408089435,1773133841572,-300.6106,0.0001959,3]
[408089436,1773133841581,-151.0,0.00019607,2]
[408089437,1773133841590,-611.761243,0.00019607,2]
[408089438,1773133841599,-611.761243,0.00019607,2]
[408089439,1773133841608,-151.0,0.00019607,2]
[408089440,1773133841616,-611.761243,0.00019607,2]
[408089441,1773133841625,-151.0,0.00019607,2]
[408089442,1773133841634,-611.761243,0.00019607,2]
[408089443,1773133841643,-152.491587,0.00019607,2]
[408089444,1773133841652,-151.0,0.00019607,2]
[408089445,1773133841660,-182.697089,0.00019607,2]
[408089446,1773133841669,-182.697089,0.00019607,2]
[408089447,1773133841678,-730.561123,0.00019607,2]
[408089448,1773133841688,-182.697089,0.00019607,2]
[408089449,1773133841697,-730.561123,0.00019607,2]
[408089450,1773133841706,-182.697089,0.00019607,2]
[408089451,1773133841714,-730.561123,0.00019607,2]
[408089452,1773133841723,-730.561123,0.00019607,2]
[408089453,1773133841732,-796.414492,0.00019607,2]
[408089454,1773133841741,-796.414492,0.00019607,2]
[408089455,1773133841751,-796.414492,0.00019607,2]
[408089456,1773133841760,-796.414492,0.00019607,2]
[408089457,1773133841768,-151.0,0.00019607,2]
[408089458,1773133841777,-227.069003,0.00019607,2]
[408089459,1773133841787,-227.069003,0.00019607,2]
[408089460,1773133841796,-227.069003,0.00019607,2]
[408089461,1773133841805,-227.069003,0.00019607,2]
[408089462,1773133841814,-153.534323,0.00019607,2]
[408089463,1773133841823,-151.0,0.00019607,2]
[408089464,1773133841832,-276.247816,0.00019607,2]
[408089465,1773133841842,-1638.082014,0.00019607,2]
[408089466,1773133841851,-151.0,0.00019607,2]
[408089467,1773133841860,-1638.082014,0.00019607,2]
[408089468,1773133841870,-1638.082014,0.00019607,2]
[408089469,1773133841878,-1638.082014,0.00019607,2]
[408089470,1773133841887,-280.734468,0.00019607,2]
[408089471,1773133841896,-280.734468,0.00019607,2]
[408089472,1773133841905,-280.734468,0.00019607,2]
[408089473,1773133841914,-280.734468,0.00019607,2]
[408089474,1773133841923,-341.84545,0.00019607,2]
[408089475,1773133841932,-341.84545,0.00019607,2]
[408089476,1773133841941,-341.84545,0.00019607,2]
[408089477,1773133841949,-341.84545,0.00019607,2]
[408089478,1773133841958,-480.307624,0.00019607,2]
[408089479,1773133841967,-480.307624,0.00019607,2]
[408089480,1773133841976,-480.307624,0.00019607,2]
[408089481,1773133841985,-480.307624,0.00019607,2]
[408089482,1773133841994,-151.0,0.00019607,2]
[408089483,1773133842003,-151.0,0.00019607,2]
[408089484,1773133842012,-264.936696,0.00019607,2]
[408089485,1773133842021,-381.697716,0.00019607,2]
[408089486,1773133842029,-381.697716,0.00019607,2]
[408089487,1773133842038,-381.697716,0.00019607,2]
[408089488,1773133842047,-172.263771,0.00019607,2]
[408089489,1773133842057,-381.697716,0.00019607,2]
[408089490,1773133842066,-151.0,0.00019607,2]
[408089491,1773133842076,-151.0,0.00019607,2]
[408089492,1773133842085,-151.0,0.00019607,2]
[408089493,1773133842095,-151.0,0.00019607,2]
[408089494,1773133842104,-151.0,0.00019607,2]
[408089495,1773133842114,-151.0,0.00019607,2]
[408089496,1773133842124,-151.0,0.00019607,2]
[408089497,1773133842134,-489.0,0.00019618,2]
[408089498,1773133842144,-489.0,0.00019618,2]
[408089499,1773133842154,-6796.41223008,0.00019623,2]
[408089500,1773133842165,-500.0,0.00019627,2]
[408089501,1773133842175,-433.6846762,0.00019627,2]
[408089502,1773133842187,-490.16137194,0.00019627,2]
[408089503,1773133842198,-3517.9478698,0.00019628,2]
[408089504,1773133842208,-84334.8563286,0.00019628,2]
[408089505,1773133842218,-80800.7407871,0.00019628,2]
[408089506,1773133842227,-66076.38005018,0.00019628,2]
[408089518,1773133846251,-151.0,0.00019607,2]
[408089519,1773133846261,-867.24823846,0.00019607,2]
[408089522,1773133863909,1494.0266287,0.00014079,2]
[408089523,1773133863936,822.2833713,0.00014079,2]
[408089524,1773133941617,500.0,9.5e-05,2]
[408089525,1773133941899,500.0,9.5e-05,2]
[408089526,1773133946013,500.0,9.5e-05,2]
[408089527,1773133946480,500.0,9.5e-05,2]
[408089528,1773133949242,500.0,9.5e-05,2]
[408089529,1773133949730,500.0,9.5e-05,2]
[408089530,1773133950527,500.0,9.5e-05,2]
[408089531,1773133951098,500.0,9.5e-05,2]
[408089532,1773133952535,500.0,9.5e-05,2]
[408089533,1773133952661,957.00532779,9.5e-05,2]
[408089534,1773133983759,-200.0,0.00015,30]
[408089538,1773134237644,500.0,9.5e-05,2]
[408089539,1773134245424,500.0,9.5e-05,2]
[408089540,1773134245919,500.0,9.5e-05,2]
[408089541,1773134246360,500.0,9.5e-05,2]
[408089542,1773134246934,500.0,9.5e-05,2]
[408089543,1773134248022,500.0,9.5e-05,2]
[408089544,1773134251070,500.0,9.5e-05,2]
[408089545,1773134282372,327.96969441,0.0002,120]
[408089616,1773134356433,505.59,9.269e-05,2]
[408089617,1773134356716,505.59,9.757e-05,2]
[408089618,1773134356991,505.59,0.00010245,2]
[408089619,1773134357186,505.59,0.00010733,2]
[408089620,1773134357499,505.59,0.00011221,2]
[408089621,1773134357785,505.59,0.00011709,2]
[408089622,1773134357989,505.59,0.00012196,2]
[408089623,1773134358202,505.59,0.00012684,2]
[408089624,1773134358495,505.59,0.00013172,2]
[408089625,1773134358695,505.59,0.0001366,2]
[408089626,1773134358933,505.59,0.00014148,2]
[408089627,1773134586543,500.0,0.000145,2]
[408089630,1773134828011,262.0,7.945e-05,2]
[408089631,1773134887418,200.0,7.945e-05,2]
[408089672,1773135031457,-410.02675389,0.00014636,2]
[408089673,1773135031565,-95.56324611,0.00014636,2]
[408089674,1773135031575,-150.0,0.00014636,2]
[408089675,1773135031585,-271.0,0.00014636,2]
[408089676,1773135031596,-1200.0,0.00014999,2]
[408089677,1773135031606,-300.0,0.00014999,2]
[408089678,1773135031617,-150.0,0.00014999,2]
[408089680,1773135031626,-150.0,0.00014999,30]
[408089681,1773135031636,-221.3975243,0.00015,2]
[408089682,1773135031653,-28.6024757,0.00015,2]
[408089683,1773135031663,-500.0,0.00015,30]
[408089684,1773135031672,-500.0,0.00015,30]
[408089686,1773135031682,-500.0,0.00015,30]
[408089688,1773135031694,-500.0,0.00015,30]
[408089690,1773135031703,-500.0,0.00015,30]
[408089692,1773135031713,-500.0,0.00015,30]
[408089693,1773135031722,-800.0,0.00015,30]
[408089694,1773135031735,-500.0,0.00015,30]
[408089695,1773135031744,-500.0,0.00015,30]
[408089696,1773135031754,-500.0,0.00015,30]
[408089697,1773135031763,-500.0,0.00015,30]
[408089698,1773135031776,-500.0,0.00015,30]
[408089699,1773135031785,-500.0,0.00015,30]
[408089700,1773135031795,-500.0,0.00015,30]
[408089701,1773135031805,-500.0,0.00015,30]
[408089702,1773135031815,-500.0,0.00015,30]
[408089703,1773135031824,-500.0,0.00015,30]
[408089704,1773135031834,-500.0,0.00015,30]
[408089705,1773135031844,-500.0,0.00015,30]
[408089706,1773135031853,-500.0,0.00015,30]
[408089707,1773135031864,-500.0,0.00015,30]
[408089708,1773135031873,-505.59,0.00015124,2]
[408089709,1773135031882,-604.730549,0.00015318,7]
[408089710,1773135031892,-505.59,0.00015611,2]
[408089711,1773135031901,-313.66193889,0.00015804,2]
[408089712,1773135031910,-505.59,0.00016099,2]
[408089713,1773135031920,-255.0,0.00016124,2]
[408089714,1773135031930,-251.0,0.00016416,2]
[408089715,1773135031940,-1680.0,0.00016499,2]
[408089716,1773135031950,-505.59,0.00016587,2]
[408089717,1773135031960,-200.0,0.00016808,2]
[408089718,1773135031971,-2000.0,0.00016818,2]
[408089719,1773135031981,-504.0,0.00017,2]
[408089720,1773135031992,-505.59,0.00017075,2]
[408089721,1773135032001,-433.0,0.00017339,2]
[408089722,1773135032011,-200.0,0.00017356,2]
[408089723,1773135032019,-2000.0,0.00017446,2]
[408089724,1773135032029,-592.1,0.00017477,2]
[408089725,1773135032038,-505.59,0.00017563,2]
[408089726,1773135032048,-166.66,0.00017612,2]
[408089727,1773135032058,-1000.0,0.00017628,2]
[408089728,1773135032067,-200.0,0.00017904,2]
[408089729,1773135032076,-166.66,0.00017982,2]
[408089730,1773135032085,-166.66,0.00017992,2]
[408089731,1773135032095,-505.59,0.00018051,2]
[408089732,1773135032104,-2351.0,0.00018149,2]
[408089733,1773135032115,-500.0,0.00018176,2]
[408089734,1773135032124,-500.0,0.00018176,7]
[408089735,1773135032134,-500.0,0.00018176,7]
[408089736,1773135032144,-500.0,0.00018176,7]
[408089737,1773135032153,-450.0,0.00018188,2]
[408089738,1773135032163,-166.66,0.00018353,2]
[408089739,1773135032172,-755.913186,0.00018381,7]
[408089740,1773135032182,-500.0,0.00018411,7]
[408089741,1773135032192,-500.0,0.00018411,7]
[408089742,1773135032202,-500.0,0.00018411,7]
[408089743,1773135032212,-500.0,0.0001845,2]
[408089744,1773135032221,-200.0,0.00018452,2]
[408089745,1773135032230,-185.5,0.00018539,2]
[408089746,1773135032241,-296.83,0.00018539,2]
[408089747,1773135032250,-150.0,0.00018539,2]
[408089748,1773135032259,-505.59,0.00018539,2]
[408089749,1773135032269,-166.66,0.00018586,2]
[408089750,1773135032278,-504.0,0.00018615,3]
[408089751,1773135032288,-648.0,0.00018629,2]
[408089752,1773135032299,-500.0,0.00018685,7]
[408089753,1773135032308,-825.98,0.00018685,7]
[408089754,1773135032317,-500.0,0.00018724,2]
[408089755,1773135032327,-166.66,0.00018724,2]
[408089756,1773135032338,-500.0,0.00018767,2]
[408089757,1773135032347,-1000.0,0.00018793,2]
[408089758,1773135032357,-9000.0,0.00018794,2]
[408089759,1773135032369,-1406.45091151,0.00018794,2]
[408089760,1773135032378,-695.39793187,0.00018794,2]
[408089761,1773135032387,-1000.0,0.00018794,2]
[408089762,1773135032396,-578.20924308,0.00018794,2]
[408089763,1773135032405,-9207.20483851,0.00018794,2]
[408089764,1773135032415,-500.0,0.00018794,2]
[408089765,1773135032424,-200.0,0.00018794,2]
[408089766,1773135032433,-250.0,0.00018794,2]
[408089767,1773135032443,-250.0,0.00018794,2]
[408089768,1773135032451,-250.0,0.00018794,2]
[408089769,1773135032461,-250.0,0.00018794,2]
[408089770,1773135032470,-250.0,0.00018794,2]
[408089771,1773135032481,-743.50770149,0.00018794,2]
[408089772,1773135032490,-250.0,0.00018794,2]
[408089773,1773135032499,-174.61919141,0.00018794,2]
[408089774,1773135032508,-201.93286099,0.00018794,2]
[408089775,1773135032517,-151.0,0.00018794,2]
[408089776,1773135032526,-262.90206542,0.00018794,2]
[408089777,1773135032536,-9000.0,0.00018849,2]
[408089778,1773135032546,-151.0,0.00018849,2]
[408089779,1773135032555,-9000.0,0.00018904,2]
[408089780,1773135032566,-151.0,0.00018904,2]
[408089781,1773135032576,-2000.0,0.00018921,2]
[408089782,1773135032585,-9000.0,0.00018959,2]
[408089783,1773135032595,-151.0,0.00018959,2]
[408089784,1773135032606,-500.0,0.00018959,7]
[408089785,1773135032619,-500.0,0.00018998,2]
[408089786,1773135032628,-235.69610359,0.00019,5]
[408089787,1773135032638,-253.96055959,0.00019,2]
[408089788,1773135032651,-9000.0,0.00019014,2]
[408089789,1773135032660,-151.0,0.00019014,2]
[408089790,1773135032671,-9000.0,0.00019069,2]
[408089791,1773135032682,-151.0,0.00019069,2]
[408089792,1773135032694,-166.66,0.00019095,2]
[408089793,1773135032709,-300.0,0.000191,2]
[408089794,1773135032720,-221.911124,0.00019106,2]
[408089795,1773135032729,-950.9,0.00019106,2]
[408089796,1773135032739,-9000.0,0.00019124,2]
[408089797,1773135032750,-151.0,0.00019124,2]
[408089798,1773135032760,-787.0,0.00019178,2]
[408089799,1773135032769,-250.0,0.00019178,2]
[408089800,1773135032784,-151.0,0.00019179,2]
[408089801,1773135032793,-166.66,0.0001918,2]
[408089802,1773135032802,-2000.0,0.000192,2]
[408089803,1773135032811,-2605.5301,0.00019228,2]
[408089804,1773135032821,-500.0,0.00019233,7]
[408089805,1773135032830,-151.0,0.00019234,2]
[408089806,1773135032840,-11000.0,0.00019257,7]
[408089807,1773135032849,-500.0,0.00019272,2]
[408089808,1773135032858,-500.0,0.00019272,7]
[408089809,1773135032868,-700.0,0.00019277,2]
[408089810,1773135032877,-151.0,0.00019289,2]
[408089811,1773135032887,-500.0,0.00019313,2]
[408089812,1773135032897,-362.0,0.00019339,5]
[408089813,1773135032907,-489.0,0.00019339,5]
[408089814,1773135032917,-150.99,0.00019339,2]
[408089815,1773135032926,-3740.38,0.00019339,2]
[408089816,1773135032935,-9999.99,0.00019339,2]
[408089817,1773135032945,-350.66,0.00019339,2]
[408089818,1773135032954,-9999.99,0.00019339,2]
[408089819,1773135032963,-150.99,0.00019339,2]
[408089820,1773135032972,-159.0,0.00019341,2]
[408089821,1773135032981,-1000.0,0.00019342,2]
[408089822,1773135032991,-200.0,0.00019342,2]
[408089823,1773135033000,-771.01748645,0.00019342,2]
[408089824,1773135033009,-181.08010149,0.00019342,2]
[408089825,1773135033019,-209.40437684,0.00019342,2]
[408089826,1773135033028,-272.62944185,0.00019342,2]
[408089827,1773135033038,-151.0,0.00019344,2]
[408089828,1773135033047,-761.0,0.00019352,2]
[408089829,1773135033056,-150.0,0.00019352,2]
[408089830,1773135033066,-150.0,0.00019352,2]
[408089831,1773135033075,-160.0,0.00019352,2]
[408089832,1773135033084,-2500.0,0.00019364,2]
[408089833,1773135033093,-151.0,0.00019399,2]
[408089834,1773135033102,-1750.41862282,0.00019424,2]
[408089835,1773135033114,-159.99163251,0.00019425,2]
[408089836,1773135033123,-166.66,0.00019465,2]
[408089837,1773135033132,-500.0,0.00019507,7]
[408089838,1773135033427,-514.8,0.00019518,2]
[408089839,1773135033436,-500.0,0.00019527,2]
[408089840,1773135033445,-500.0,0.00019527,2]
[408089841,1773135033454,-500.0,0.00019527,2]
[408089842,1773135033465,-450.9,0.00019527,2]
[408089843,1773135033474,-128787.7059,0.00019528,2]
[408089844,1773135033483,-500.0,0.00019545,2]
[408089845,1773135033492,-240.28,0.00019553,2]
[408089846,1773135033502,-450.0,0.00019558,2]
[408089847,1773135033511,-1279.0,0.00019561,2]
[408089848,1773135033519,-1213.0,0.00019561,2]
[408089849,1773135033528,-922.0,0.00019561,2]
[408089850,1773135033538,-619.0,0.00019561,2]
[408089851,1773135033547,-3505.0,0.00019561,2]
[408089852,1773135033556,-642.814,0.00019564,2]
[408089853,1773135033565,-185.5,0.00019568,2]
[408089854,1773135033573,-514.8,0.00019616,2]
[408089855,1773135033582,-7522.4802846,0.00019623,2]
[408089856,1773135033591,-2309.4280748,0.00019623,2]
[408089857,1773135033600,-960.1085827,0.00019623,2]
[408089858,1773135033608,-25549.26191711,0.00019623,2]
[408089859,1773135034379,-9856.29979919,0.00019623,2]
[408089860,1773135034388,-24147.82293814,0.00019623,2]
[408089869,1773135037867,-1382.06179791,0.00019623,2]
[408089886,1773135039872,-825.48384484,0.00019623,2]
[408089887,1773135040190,-34759.69956031,0.00019623,2]
[408089889,1773135040199,-151.0,0.00019623,2]
[408089891,1773135040208,-276.247816,0.00019623,2]
[408089892,1773135040217,-177.9015,0.00019623,2]
[408089893,1773135040226,-177.9015,0.00019623,2]
[408089894,1773135040235,-151.0,0.00019623,2]
[408089895,1773135040243,-177.9015,0.00019623,2]
[408089897,1773135040253,-151.0,0.00019623,2]
[408089898,1773135040266,-177.9015,0.00019623,2]
[408089899,1773135040275,-480.307624,0.00019623,2]
[408089900,1773135040286,-480.307624,0.00019623,2]
[408089901,1773135040295,-480.307624,0.00019623,2]
[408089902,1773135040304,-280.734468,0.00019623,2]
[408089903,1773135040314,-480.307624,0.00019623,2]
[408089904,1773135040323,-280.734468,0.00019623,2]
[408089905,1773135040332,-151.0,0.00019623,2]
[408089906,1773135040341,-280.734468,0.00019623,2]
[408089907,1773135040618,-151.0,0.00019623,2]
[408089908,1773135040627,-280.734468,0.00019623,2]
[408089909,1773135040637,-151.0,0.00019623,2]
[408089910,1773135040645,-341.84545,0.00019623,2]
[408089911,1773135040654,-151.0,0.00019623,2]
[408089912,1773135040663,-341.84545,0.00019623,2]
[408089913,1773135040672,-4124.192072,0.00019623,2]
[408089914,1773135040682,-341.84545,0.00019623,2]
[408089915,1773135040693,-4124.192072,0.00019623,2]
[408089916,1773135040705,-341.84545,0.00019623,2]
[408089917,1773135040715,-4124.192072,0.00019623,2]
[408089918,1773135040724,-4124.192072,0.00019623,2]
[408089919,1773135040735,-381.697716,0.00019623,2]
[408089920,1773135040744,-151.0,0.00019623,2]
[408089921,1773135040755,-151.0,0.00019623,2]
[408089922,1773135040764,-151.0,0.00019623,2]
[408089923,1773135040776,-151.0,0.00019623,2]
[408089924,1773135040786,-381.697716,0.00019623,2]
[408089925,1773135040795,-381.697716,0.00019623,2]
[408089926,1773135040804,-381.697716,0.00019623,2]
[408089927,1773135040813,-1556.177913,0.00019623,2]
[408089928,1773135040824,-1556.177913,0.00019623,2]
[408089929,1773135040833,-151.0,0.00019623,2]
[408089930,1773135040843,-1556.177913,0.00019623,2]
[408089931,1773135040852,-1556.177913,0.00019623,2]
[408089932,1773135040861,-389.345317,0.00019623,2]
[408089933,1773135040871,-389.345317,0.00019623,2]
[408089934,1773135040880,-151.0,0.00019623,2]
[408089935,1773135040889,-389.345317,0.00019623,2]
[408089936,1773135040899,-151.0,0.00019623,2]
[408089937,1773135040907,-389.345317,0.00019623,2]
[408089938,1773135040917,-172.263771,0.00019623,2]
[408089939,1773135040926,-151.0,0.00019623,2]
[408089940,1773135040935,-151.0,0.00019623,2]
[408089941,1773135040945,-151.0,0.00019623,2]
[408089942,1773135040955,-1972.33,0.00019625,2]
[408089943,1773135040966,-500.0,0.00019625,2]
[408089944,1773135040976,-500.0,0.00019625,2]
[408089945,1773135040986,-185708.4444126,0.00019626,2]
[408089946,1773135040996,-153.534323,0.00019626,2]
[408089947,1773135041006,-236.91424,0.00019626,2]
[408089948,1773135041016,-151.0,0.00019626,2]
[408089949,1773135041025,-202.838684,0.00019626,2]
[408089950,1773135041039,-202.838684,0.00019626,2]
[408089951,1773135041049,-202.838684,0.00019626,2]
[408089952,1773135041058,-202.838684,0.00019626,2]
[408089953,1773135041067,-303.846835,0.00019626,2]
[408089954,1773135041076,-303.846835,0.00019626,2]
[408089955,1773135041086,-303.846835,0.00019626,2]
[408089956,1773135041095,-303.846835,0.00019626,2]
[408089957,1773135041105,-164.746908,0.00019626,2]
[408089958,1773135041114,-151.0,0.00019626,2]
[408089959,1773135041123,-151.0,0.00019626,2]
[408089960,1773135041132,-574.893454,0.00019626,2]
[408089961,1773135041143,-574.893454,0.00019626,2]
[408089962,1773135041151,-574.893454,0.00019626,2]
[408089963,1773135041161,-151.0,0.00019626,2]
[408089964,1773135041170,-151.0,0.00019626,2]
[408089965,1773135041179,-574.893454,0.00019626,2]
[408089966,1773135041192,-151.0,0.00019626,2]
[408089967,1773135041201,-151.0,0.00019626,2]
[408089968,1773135041210,-151.0,0.00019626,2]
[408089969,1773135041219,-189.498979,0.00019626,2]
[408089970,1773135041229,-151.0,0.00019626,2]
[408089971,1773135041238,-151.0,0.00019626,2]
[408089972,1773135041248,-151.0,0.00019626,2]
[408089973,1773135041257,-151.0,0.00019626,2]
[408089974,1773135041267,-151.0,0.00019626,2]
[408089975,1773135041277,-151.0,0.00019626,2]
[408089976,1773135041287,-969.980716,0.00019626,2]
[408089977,1773135041297,-337.411131,0.00019626,2]
[408089978,1773135041307,-969.980716,0.00019626,2]
[408089979,1773135041317,-1489.237899,0.00019626,2]
[408089980,1773135041327,-337.411131,0.00019626,2]
[408089981,1773135041339,-969.980716,0.00019626,2]
[408089982,1773135041349,-1489.237899,0.00019626,2]
[408089983,1773135041359,-337.411131,0.00019626,2]
[408089984,1773135041368,-969.980716,0.00019626,2]
[408089985,1773135041378,-1489.237899,0.00019626,2]
[408089986,1773135041387,-1279.93,0.00019626,2]
[408089987,1773135041397,-337.411131,0.00019626,2]
[408089988,1773135041407,-151.0,0.00019626,2]
[408089989,1773135041417,-1489.237899,0.00019626,2]
[408089990,1773135041426,-284.144415,0.00019626,2]
[408089991,1773135041436,-151.0,0.00019626,2]
[408089992,1773135041446,-195.290384,0.00019626,2]
[408089993,1773135041456,-154.532111,0.00019626,2]
[408089994,1773135041466,-151.0,0.00019626,2]
[408089995,1773135041477,-151.0,0.00019626,2]
[408089996,1773135041487,-674.63742,0.00019626,2]
[408089997,1773135041497,-674.63742,0.00019626,2]
[408089998,1773135041507,-674.63742,0.00019626,2]
[408089999,1773135041518,-674.63742,0.00019626,2]
[408090000,1773135041527,-154.839094,0.00019626,2]
[408090001,1773135041537,-151.0,0.00019626,2]
[408090002,1773135041547,-151.0,0.00019626,2]
[408090003,1773135041558,-279.01536,0.00019626,2]
[408090004,1773135041569,-151.0,0.00019626,2]